[Event "DFMMLV 2017"]
[Site "Braunfels"]
[Date "2017.06.16"]
[Round "3"]
[White "Gottschall, Ina"]
[Black "Busch, Annette"]
[Result "0-1"]
[ECO "D30"]
[WhiteElo "1679"]
[BlackElo "1637"]
[Annotator "NA"]
[PlyCount "77"]
[EventDate "2017.??.??"]
[EventType "team-tourn"]
[EventCountry "GER"]
[SourceTitle "playchess.com"]
[Source "ChessBase"]
[SourceQuality "1"]
[TimeControl "40/5400+30:1800+30"]

1. d4 d5 {[%emt 0:00:04]} 2. c4 {[%emt 0:00:00]} e6 {[%emt 0:00:07]} 3. Nf3 {[%emt 0:00:00]} Nf6 {[%emt 0:00:16]} 4. Bg5 {[%emt 0:00:00]} c6 {[%emt 0:00:09]} 5. Nc3 {[%emt 0:00:21]} Nbd7 {[%emt 0:00:21]} 6. cxd5 {[%emt 0:01:29]} exd5 {[%emt 0:00:07]} 7. Ne5 {[%emt 0:11:10]} Be7 {[%emt 0:03:59]} 8. Nxd7 {[%emt 0:01:07]} Bxd7 {[%emt 0:00:08]} 9. e3 {[%emt 0:00:47]} O-O {[%emt 0:03:36]} 10. Be2 {[%emt 0:03:18]} Bf5 {[%emt 0:02:58]} 11. O-O {[%emt 0:00:36]} Re8 {[%emt 0:03:28]} 12. Rc1 {[%emt 0:06:44]} Ne4 {[%emt 0:02:31]} 13. Bxe7 {[%emt 0:03:53]} Qxe7 {[%emt 0:00:56]} 14. Bg4 {[%emt 0:01:45]} Bg6 {[%emt 0:04:23]} 15. a3 {[%emt 0:02:34]} h6 {[%emt 0:16:26]} 16. Nxe4 {[%emt 0:19:34]} Bxe4 {[%emt 0:02:48]} 17. Bf3 {[%emt 0:02:14]} Qg5 {[%emt 0:02:03]} 18. Rc3 {[%emt 0:07:50]} Re6 {[%emt 0:03:57]} 19. Bxe4 {[%emt 0:02:40]} Rxe4 {[%emt 0:03:01]} 20. Qf3 {[%emt 0:08:51]} Rae8 {[%emt 0:04:42]} 21. b4 {[%emt 0:02:13]} a6 {[%emt 0:00:53]} 22. a4 {[%emt 0:01:19]} R8e6 {[%emt 0:01:18]} 23. g3 {[%emt 0:00:58]} h5 {[%emt 0:15:01]} 24. Qg2 {[%emt 0:01:26]} h4 {[%emt 0:02:08]} 25. f4 {[%emt 0:04:17]} Qh6 {[%emt 0:07:34]} 26. Qf3 {[%emt 0:01:55]} hxg3 {[%emt 0:01:56]} 27. hxg3 {[%emt 0:00:32]} Qh3 {[%emt 0:03:20]} 28. Rf2 {[%emt 0:05:19]} Rh6 {[%emt 0:07:15]} 29. Rcc2 {[%emt 0:00:51]} Qe6 {[%emt 0:00:54]} 30. Rce2 {[%emt 0:02:25]} Qe7 {[%emt 0:00:45]} 31. Rh2 {[%emt 0:02:07]} Rxh2 {[%emt 0:04:49]} 32. Kxh2 {[%emt 0:00:07]} Qxb4 {[%emt 0:00:41]} 33. Qh5 {[%emt 0:02:23]} Re6 {[%emt 0:01:04]} 34. Kg2 {[%emt 0:01:14]} Qe7 {[%emt 0:00:30]} 35. Kf3 {[%emt 0:00:29]} Rh6 {[%emt 0:00:31]} 36. Qf5 {[%emt 0:00:36]} Qe6 {[%emt 0:00:46]} 37. Qg5 {[%emt 0:02:20]} Qe4+ {[%emt 0:00:12]} 38. Kf2 {[%emt 0:00:25]} Rh2+ {[%emt 0:00:25]} 39. Ke1 {[%emt 0:00:27]} 0-1

[Event "DFMMLV 2017"]
[Site "Braunfels"]
[Date "2017.06.16"]
[Round "3"]
[White "Landenberger, Anja Kathrin"]
[Black "Stockdreher, Diana"]
[Result "1/2-1/2"]
[ECO "A47"]
[WhiteElo "1544"]
[BlackElo "1435"]
[Annotator "NA"]
[PlyCount "69"]
[EventDate "2017.??.??"]
[EventType "team-tourn"]
[EventCountry "GER"]
[SourceTitle "playchess.com"]
[Source "ChessBase"]
[SourceQuality "1"]
[TimeControl "40/5400+30:1800+30"]

1. d4 {[%emt 0:00:00]} Nf6 {[%emt 0:00:32]} 2. Nf3 {[%emt 0:00:05]} b6 {[%emt 0:00:58]} 3. Bf4 {[%emt 0:00:59]} Bb7 {[%emt 0:00:24]} 4. e3 {[%emt 0:00:14]} e6 {[%emt 0:04:17]} 5. Be2 {[%emt 0:02:21]} Bd6 {[%emt 0:06:58]} 6. Bxd6 {[%emt 0:12:28]} cxd6 {[%emt 0:00:14]} 7. O-O {[%emt 0:00:22]} Ne4 {[%emt 0:05:33]} 8. Nbd2 {[%emt 0:01:52]} O-O {[%emt 0:01:07]} 9. a4 {[%emt 0:25:21]} Nxd2 {[%emt 0:09:44]} 10. Qxd2 {[%emt 0:04:46]} a5 {[%emt 0:11:39]} 11. c3 {[%emt 0:03:41]} Be4 {[%emt 0:02:16]} 12. Rfd1 {[%emt 0:03:57]} d5 {[%emt 0:02:21]} 13. Ne1 {[%emt 0:12:39]} Nc6 {[%emt 0:07:39]} 14. Bd3 {[%emt 0:08:49]} Qg5 {[%emt 0:06:45]} 15. f4 {[%emt 0:08:08]} Qh6 {[%emt 0:03:22]} 16. Bxe4 {[%emt 0:02:46]} dxe4 {[%emt 0:00:10]} 17. Qc2 {[%emt 0:02:21]} d5 {[%emt 0:01:16]} 18. Qf2 {[%emt 0:00:28]} f5 {[%emt 0:00:47]} 19. Nc2 {[%emt 0:02:17]} Qh5 {[%emt 0:06:41]} 20. g3 {[%emt 0:01:32]} Nd8 {[%emt 0:02:05]} 21. Rd2 {[%emt 0:01:48]} Nf7 {[%emt 0:00:26]} 22. Qe2 {[%emt 0:00:44]} Qxe2 {[%emt 0:01:51]} 23. Rxe2 {[%emt 0:00:04]} Nd6 {[%emt 0:00:43]} 24. Na3 {[%emt 0:00:13]} Rfc8 {[%emt 0:01:01]} 25. Kf2 {[%emt 0:00:40]} h5 {[%emt 0:01:37]} 26. Rg1 {[%emt 0:01:34]} Kf7 {[%emt 0:03:23]} 27. Ke1 {[%emt 0:01:22]} g6 {[%emt 0:03:07]} 28. Kf2 {[%emt 0:00:47]} Rab8 {[%emt 0:01:58]} 29. Ra1 {[%emt 0:00:48]} Rh8 {[%emt 0:01:15]} 30. h4 {[%emt 0:00:04]} Rhc8 {[%emt 0:00:37]} 31. Ra2 {[%emt 0:00:50]} Ke7 {[%emt 0:05:50]} 32. Ke1 {[%emt 0:00:08]} Kd7 {[%emt 0:00:34]} 33. Kd1 {[%emt 0:00:08]} Rc7 {[%emt 0:01:10]} 34. Ra1 {[%emt 0:00:18]} Rcc8 {[%emt 0:03:11]} 35. Ra2 {[%emt 0:00:16]} 1/2-1/2

[Event "DFMMLV 2017"]
[Site "Braunfels"]
[Date "2017.06.17"]
[Round "4"]
[White "Ambartsumova, Karina"]
[Black "Steimbach, Isabel"]
[Result "1-0"]
[ECO "D31"]
[WhiteElo "2318"]
[BlackElo "1972"]
[Annotator "NA"]
[PlyCount "95"]
[EventDate "2017.??.??"]
[EventType "team-tourn"]
[EventCountry "GER"]
[SourceTitle "playchess.com"]
[Source "ChessBase"]
[SourceQuality "1"]
[TimeControl "40/5400+30:1800+30"]

1. d4 {[%emt 0:00:00]} d5 {[%emt 0:00:03]} 2. c4 {[%emt 0:00:35]} e6 {[%emt 0:00:05]} 3. Nc3 {[%emt 0:00:54]} Be7 {[%emt 0:00:07]} 4. Bf4 {[%emt 0:01:26]} Nf6 {[%emt 0:00:23]} 5. e3 {[%emt 0:00:39]} O-O {[%emt 0:00:40]} 6. a3 {[%emt 0:00:17]} c6 {[%emt 0:05:38]} 7. Nf3 {[%emt 0:05:10]} Nbd7 {[%emt 0:00:39] D37: Queen's Gambit Declined: 5 Bf4} 8. Bd3 {[%emt 0:07:41]} (8. Rc1 b6 9. Bd3 dxc4 10. Bxc4 Bb7 11. O-O a6 12. e4 b5 13. Ba2 Rc8 14. e5 Nd5 15. Nxd5 cxd5 16. Rxc8 Qxc8 {1-0 (30) Mamedyarov,S (2761)-Tomashevsky,E (2731) Moscow 2016}) 8... dxc4 {[%emt 0:02:06]} 9. Bxc4 {[%emt 0:00:29]} Nb6 {[%emt 0:00:46]} (9... b5 $5 {[%cal Rb5c4]} 10. Bd3 a6 $14) 10. Bd3 {[%emt 0:01:42]} Nbd5 {[%emt 0:01:06]} 11. Bg3 {[%emt 0:06:00]} Nxc3 {[%emt 0:03:44]} 12. bxc3 {[%emt 0:00:17]} Qa5 $146 {[%emt 0:00:19]} ({Predecessor:} 12... b6 13. e4 Bb7 14. c4 Nh5 15. Be5 {1-0 (45) Knezevic,M (2420)-Rakay,K (2200) Stary Smokovec 1974}) 13. Qc2 {[%emt 0:05:29]} Nd5 {[%emt 0:03:19]} ({Black should play} 13... c5 $14) 14. O-O {[%emt 0:03:54]} Qxc3 {[%emt 0:03:41]} 15. Bxh7+ {[%emt 0:01:35]} Kh8 {[%emt 0:00:04]} 16. Qxc3 {[%emt 0:01:50]} Nxc3 {[%emt 0:00:04]} 17. Bd3 {[%emt 0:00:04]} Bd7 {[%emt 0:11:28]} 18. Ne5 {[%emt 0:03:04]} Be8 {[%emt 0:00:32]} 19. Rfc1 {[%emt 0:07:01]} Na4 {[%emt 0:01:04]} 20. Rcb1 {[%emt 0:03:54]} ({White should try} 20. Rab1 $16 Bxa3 21. Rc2) 20... b6 {[%emt 0:06:17]} 21. Rc1 {[%emt 0:02:26]} c5 {[%emt 0:01:09] [#]} 22. Be4 $1 {[%emt 0:00:38]} Rd8 {[%emt 0:03:17]} (22... Rc8 $16 {might work better.}) 23. Nc6 {[%emt 0:01:50]} Bxc6 {[%emt 0:00:49]} 24. Bxc6 {[%emt 0:00:08]} Nb2 {[%emt 0:01:05]} 25. Rc2 {[%emt 0:03:51]} cxd4 {[%emt 0:01:24]} 26. Rxb2 {[%emt 0:00:52]} dxe3 {[%emt 0:00:09]} 27. Re2 {[%emt 0:05:18]} exf2+ {[%emt 0:05:06]} 28. Bxf2 {[%emt 0:01:20]} Rd3 {[%emt 0:01:32]} 29. a4 {[%emt 0:01:08]} Rfd8 {[%emt 0:02:08]} 30. Bb5 {[%emt 0:03:04]} R3d5 {[%emt 0:03:46]} 31. Rc1 {[%emt 0:03:51]} Bd6 {[%emt 0:14:50]} 32. g3 {[%emt 0:01:40]} g6 {[%emt 0:01:48]} 33. Bc4 {[%emt 0:05:16]} Rh5 {[%emt 0:05:25]} 34. Rd1 {[%emt 0:01:17]} Be7 {[%emt 0:02:04]} 35. Rxd8+ {[%emt 0:00:09]} Bxd8 {[%emt 0:00:05]} 36. Rd2 {[%emt 0:00:22]} Bf6 {[%emt 0:01:30]} 37. Rd7 {[%emt 0:00:29]} Ra5 {[%emt 0:00:40]} 38. Bb5 {[%emt 0:00:37]} Bc3 {[%emt 0:00:48]} 39. Rxf7 {[%emt 0:01:12]} Kg8 {[%emt 0:00:29]} 40. Rc7 {[%emt 0:01:03]} Bb4 {[%emt 0:30:48]} 41. Kf1 {[%emt 0:30:47]} Kf8 {[%emt 0:01:37]} 42. Ke2 {[%emt 0:00:30]} Kg8 {[%emt 0:00:23]} 43. Rc4 {[%emt 0:00:20]} Bf8 {[%emt 0:01:11]} 44. Be1 {[%emt 0:00:14]} a6 {[%emt 0:00:16]} 45. Bxa5 {[%emt 0:00:08]} axb5 $18 {[%emt 0:00:03]} 46. axb5 {[%emt 0:00:12]} bxa5 {[%emt 0:00:03]} 47. Rc8 {[%emt 0:00:22]} Kf7 {[%emt 0:00:26]} 48. Rxf8+ {[%emt 0:00:17]} 1-0

[Event "DFMMLV 2017"]
[Site "Braunfels"]
[Date "2017.06.17"]
[Round "4"]
[White "Plass, Mariana-Camelia"]
[Black "Belenkaya, Dina"]
[Result "0-1"]
[ECO "D20"]
[WhiteElo "2078"]
[BlackElo "2306"]
[Annotator "ChessBase"]
[PlyCount "84"]
[EventDate "2017.??.??"]
[EventType "team-tourn"]
[EventCountry "GER"]
[SourceTitle "playchess.com"]
[Source "ChessBase"]
[SourceQuality "1"]
[TimeControl "40/5400+30:1800+30"]

1. d4 d5 {[%emt 0:00:55]} 2. c4 {[%emt 0:00:00]} dxc4 {[%emt 0:00:08]} 3. e3 {[%emt 0:01:00]} Nf6 {[%emt 0:00:11]} 4. Bxc4 {[%emt 0:00:28]} e6 {[%emt 0:00:04]} 5. Nf3 {[%emt 0:00:23]} a6 {[%emt 0:00:06]} 6. a4 {[%emt 0:00:32]} c5 {[%emt 0:00:09]} 7. O-O {[%emt 0:03:04]} Nc6 {[%emt 0:00:45]} 8. Nc3 {[%emt 0:02:11]} Be7 {[%emt 0:01:19]} 9. dxc5 {[%emt 0:02:09]} Bxc5 {[%emt 0:02:32]} 10. Qxd8+ {[%emt 0:08:56]} Kxd8 {[%emt 0:00:18]} 11. Rd1+ {[%emt 0:00:39]} Ke7 {[%emt 0:00:08]} 12. e4 {[%emt 0:07:28]} Ng4 {[%emt 0:05:15]} 13. Bg5+ {[%emt 0:00:46]} f6 {[%emt 0:00:47]} 14. Bh4 {[%emt 0:00:28]} Bd7 {[%emt 0:07:01]} 15. Rd2 {[%emt 0:12:20]} Nge5 {[%emt 0:11:27]} 16. Nxe5 {[%emt 0:00:39]} Nxe5 {[%emt 0:00:04]} 17. Rad1 {[%emt 0:06:35]} Bc6 {[%emt 0:01:08]} 18. Bb3 {[%emt 0:02:04]} h5 {[%emt 0:07:33]} 19. Bg3 {[%emt 0:01:00]} h4 {[%emt 0:00:55]} 20. Bxe5 {[%emt 0:10:31]} fxe5 {[%emt 0:00:10]} 21. h3 {[%emt 0:01:11]} Rhf8 {[%emt 0:01:50]} 22. Kf1 {[%emt 0:11:19]} Be3 {[%emt 0:03:11]} 23. Rc2 {[%emt 0:05:03]} Bd4 {[%emt 0:07:58]} 24. f3 {[%emt 0:01:20]} Rad8 {[%emt 0:03:32]} 25. Ke2 {[%emt 0:01:18]} Bb6 {[%emt 0:10:57]} 26. Na2 {[%emt 0:00:29]} Rxd1 {[%emt 0:18:25]} 27. Kxd1 {[%emt 0:00:02]} Ba5 {[%emt 0:01:00]} 28. Rc5 {[%emt 0:02:42]} Rd8+ {[%emt 0:00:06]} 29. Kc2 {[%emt 0:02:08]} Be1 {[%emt 0:01:06]} 30. Rxe5 {[%emt 0:08:13]} Rd2+ {[%emt 0:00:12]} 31. Kc1 {[%emt 0:00:40]} Bd7 {[%emt 0:02:34]} 32. Rg5 {[%emt 0:02:09]} Kf6 {[%emt 0:01:26]} 33. f4 {[%emt 0:03:01]} Rf2 {[%emt 0:00:13]} 34. e5+ {[%emt 0:02:03]} Kf7 {[%emt 0:00:13]} 35. Kd1 {[%emt 0:01:48]} Bd2 {[%emt 0:05:47]} 36. Rf5+ {[%emt 0:00:34]} Ke8 {[%emt 0:00:27]} 37. Rg5 {[%emt 0:00:31]} Bxf4 {[%emt 0:00:25]} 38. Rxg7 {[%emt 0:01:18]} Rxb2 {[%emt 0:01:58]} 39. Bc4 {[%emt 0:00:21]} Bxa4+ {[%emt 0:02:48]} 40. Ke1 {[%emt 0:00:00]} Bg3+ {[%emt 0:31:50]} 41. Kf1 {[%emt 0:30:34]} Rc2 {[%emt 0:00:00]} 42. Rxb7 {[%emt 0:00:00]} Rxc4 {[%emt 0:00:00]} 0-1

[Event "DFMMLV 2017"]
[Site "Braunfels"]
[Date "2017.06.17"]
[Round "4"]
[White "Winterholler, Christina"]
[Black "Poetsch, Leonore"]
[Result "1-0"]
[ECO "C00"]
[WhiteElo "2064"]
[BlackElo "1959"]
[Annotator "NA"]
[PlyCount "86"]
[EventDate "2017.??.??"]
[EventType "team-tourn"]
[EventCountry "GER"]
[SourceTitle "playchess.com"]
[Source "ChessBase"]
[SourceQuality "1"]
[TimeControl "40/5400+30:1800+30"]

{[%evp 9,86,-11,-8,-10,-2,32767,32767,-6,-6,0,0,-6,0,-23,-23,-4,-9,-8,1,-11,0,0,14,14,46,62,59,41,32767,31,32767,4,32767,32767,96,106,143,157,32767,32767,32767,32767,89,32767,32767,32767,252,32767,32767,32767,32767,32767,32767,32767,32767,32767,32767,32767,32767,32767,32767,32767,32767,32767,32767,0,32767,32767,0,0,0,0,0,0,0,0,32767,0,0]} 1. e4 {[%emt 0:01:03]} e6 {[%emt 0:00:10]} 2. d3 {[%emt 0:00:33]} d5 {[%emt 0:00:06]} 3. Nd2 {[%emt 0:00:17]} Nf6 {[%emt 0:00:07]} 4. g3 {[%emt 0:00:17]} c5 {[%emt 0:00:46]} 5. Bg2 {[%emt 0:00:10]} (5. e5 $5 {[%cal Re5f6]} Nfd7 6. f4 $11) 5... Nc6 {[%emt 0:00:15]} 6. Ngf3 {[%emt 0:01:56]} Bd6 {[%emt 0:00:32]} 7. O-O {[%emt 0:01:08]} O-O {[%emt 0:00:20]} 8. Re1 {[%emt 0:01:30] LiveBook: 24 Games} Qc7 {[%emt 0:00:42]} 9. b3 {[%emt 0:02:57] A08: King's Indian Attack} (9. Qe2 Nd7 10. c3 b6 11. Nh4 d4 12. f4 Be7 13. e5 Bxh4 14. gxh4 dxc3 15. bxc3 Bb7 16. Bb2 Ne7 17. Ne4 {½-½ (47) Mkrtchian,L (2453)-Franciskovic,B (2318) Tromsoe 2014}) 9... d4 {[%emt 0:02:37]} 10. Nc4 {[%emt 0:01:37]} e5 {[%emt 0:00:39]} 11. Nfxe5 $146 {[%emt 0:07:29]} ({Predecessor:} 11. Nxd6 Qxd6 12. a4 Bd7 13. Bd2 h6 14. a5 b5 15. axb6 axb6 16. Qe2 Rfe8 {½-½ (41) Denisov,A-Pazukhin,V Nizhnij Novgorod 2010}) 11... Nxe5 {[%emt 0:00:40]} 12. Nxd6 {[%emt 0:07:36]} Qxd6 {[%emt 0:00:28]} 13. f4 {[%emt 0:00:45]} Bg4 {[%emt 0:02:53]} 14. fxe5 {[%emt 0:04:30]} Qxe5 {[%emt 0:01:31]} 15. Qd2 {[%emt 0:05:06]} Rfe8 {[%emt 0:06:09]} 16. Qf2 {[%emt 0:05:01]} g5 {[%emt 0:06:42]} 17. Rf1 {[%emt 0:08:30]} Kg7 {[%emt 0:01:15]} 18. Ba3 {[%emt 0:13:15]} Rac8 {[%emt 0:02:00]} 19. Rac1 {[%emt 0:08:35]} Be6 {[%emt 0:02:38]} 20. Bf3 {[%emt 0:02:45]} Bh3 {[%emt 0:01:57]} 21. Rfe1 {[%emt 0:00:27]} Bg4 {[%emt 0:02:30] [#]} (21... b5 $11) 22. Bb2 $1 {[%emt 0:01:48]} b5 {[%emt 0:11:52]} (22... Bh3 $142) 23. c3 {[%emt 0:00:48]} Rcd8 {[%emt 0:02:02]} 24. cxd4 {[%emt 0:01:05]} cxd4 {[%emt 0:00:05]} 25. Rc6 {[%emt 0:04:30]} Re6 {[%emt 0:03:22]} 26. Rec1 {[%emt 0:01:22]} Rxc6 {[%emt 0:01:54]} 27. Rxc6 {[%emt 0:00:03]} h5 {[%emt 0:02:21]} (27... Bxf3 $16 28. Qxf3 a5) 28. Ba3 {[%emt 0:05:16]} Bxf3 {[%emt 0:11:34]} 29. Rc5 {[%emt 0:07:28]} Ng4 {[%emt 0:02:13]} 30. Qxf3 {[%emt 0:01:16]} Qf6 {[%emt 0:03:07]} 31. Rf5 {[%emt 0:00:54]} Qg6 {[%emt 0:00:45]} 32. Be7 {[%emt 0:00:57]} Rc8 {[%emt 0:01:06]} 33. Bxg5 {[%emt 0:01:14]} f6 {[%emt 0:01:27]} 34. Bf4 {[%emt 0:00:56]} h4 {[%emt 0:03:48]} 35. h3 {[%emt 0:01:37]} Ne5 {[%emt 0:02:54]} 36. Bxe5 {[%emt 0:01:24]} fxe5 {[%emt 0:02:45]} 37. g4 {[%emt 0:01:02]} (37. Rxe5 $16 Rc1+ 38. Kg2) 37... Rc1+ {[%emt 0:01:10]} 38. Kf2 {[%emt 0:00:17]} Rc2+ {[%emt 0:02:11]} 39. Ke1 {[%emt 0:00:08]} Rxa2 {[%emt 0:00:49]} 40. Rxe5 $11 {[%emt 0:01:49]} Ra1+ {[%emt 0:30:39]} 41. Kd2 {[%emt 0:01:50]} Ra2+ {[%emt 0:00:00]} (41... Qd6 $5 42. Rg5+ $8 Kh6 43. Rh5+ Kg7 44. Rg5+ Kh8 45. Rh5+ Kg7 46. Rg5+ $11) 42. Kd1 {[%emt 0:00:45]} Ra1+ {[%emt 0:00:00]} 43. Kd2 {[%emt 0:00:28]} Ra2+ $11 {[%emt 0:00:00] Qd1} 1-0

[Event "DFMMLV 2017"]
[Site "Braunfels"]
[Date "2017.06.17"]
[Round "4"]
[White "Fuchs, Antje"]
[Black "Clopes Llahi, Judit"]
[Result "1/2-1/2"]
[ECO "B28"]
[WhiteElo "2052"]
[BlackElo "2122"]
[Annotator "NA"]
[PlyCount "43"]
[EventDate "2017.??.??"]
[EventType "team-tourn"]
[EventCountry "GER"]
[SourceTitle "playchess.com"]
[Source "ChessBase"]
[SourceQuality "1"]
[TimeControl "40/5400+30:1800+30"]

{[%evp 15,35,20,41,44,32767,32767,32767,32767,32767,32767,32767,32767,32767,32767,32767,32767,45,32767,32767,38,32767,9]} 1. e4 {[%emt 0:03:41]} c5 {[%emt 0:00:15]} 2. Nf3 {[%emt 0:00:24]} a6 {[%emt 0:00:14]} 3. c3 {[%emt 0:01:42]} d5 {[%emt 0:00:42]} 4. exd5 {[%emt 0:00:12]} Qxd5 {[%emt 0:00:13]} 5. d4 {[%emt 0:00:25]} Nc6 {[%emt 0:04:06]} 6. Be2 {[%emt 0:01:59] B28: Sicilian: 2 Nf3 a6 (O'Kelly Variation)} cxd4 {[%emt 0:06:32]} 7. cxd4 {[%emt 0:00:30]} e6 {[%emt 0:00:19]} 8. O-O {[%emt 0:00:57]} Nf6 {[%emt 0:00:58] LiveBook: 19 Games} 9. Nc3 {[%emt 0:04:13]} {Predecessor:} Qd6 $146 {[%emt 0:03:11]} 10. Bg5 {[%emt 0:10:33]} (10. Be3 Be7 11. Nd2 Nd5 12. Nde4 Qd8 13. Nxd5 exd5 14. Nc5 O-O 15. Rc1 f5 16. Nd3 Bd6 17. f4 Qb6 18. Kh1 Be6 {½-½ (39) Leko,P (2731)-Morozevich,A (2724) Moscow 2014}) 10... Be7 {[%emt 0:06:08]} 11. Rc1 {[%emt 0:00:30]} O-O {[%emt 0:01:38]} 12. Qd2 {[%emt 0:02:50]} Nd5 {[%emt 0:09:11]} 13. Rfd1 {[%emt 0:05:17]} Rd8 {[%emt 0:13:19]} 14. Bd3 {[%emt 0:06:47]} Bxg5 {[%emt 0:08:06]} 15. Nxg5 {[%emt 0:15:09]} Nf6 {[%emt 0:09:54]} 16. Nce4 {[%emt 0:13:54]} Nxe4 {[%emt 0:01:53]} 17. Bxe4 {[%emt 0:00:44]} h6 {[%emt 0:01:53]} 18. Nf3 {[%emt 0:05:32]} Ne7 {[%emt 0:05:29]} 19. Qa5 {[%emt 0:07:41]} Nd5 {[%emt 0:06:23]} 20. Bxd5 {[%emt 0:01:23]} exd5 {[%emt 0:03:59]} 21. Re1 {[%emt 0:04:40]} Be6 {[%emt 0:01:37]} 22. Qc5 {[%emt 0:03:47]} 1/2-1/2

[Event "DFMMLV 2017"]
[Site "Braunfels"]
[Date "2017.06.17"]
[Round "4"]
[White "Gheng, Simona"]
[Black "Schneider, Birgit"]
[Result "1-0"]
[ECO "B20"]
[WhiteElo "1999"]
[BlackElo "1924"]
[Annotator "NA"]
[PlyCount "63"]
[EventDate "2017.??.??"]
[EventType "team-tourn"]
[EventCountry "GER"]
[SourceTitle "playchess.com"]
[Source "ChessBase"]
[SourceQuality "1"]
[TimeControl "40/5400+30:1800+30"]

{[%evp 8,50,-2,5,32767,32767,16,2,4,0,14,0,-3,0,29,19,23,12,25,0,10,12,20,12,0,-26,32767,-69,32767,-43,-47,-67,32767,-65,-37,-79,44,32767,32767,32767,32767,58,32767,72,62]} 1. e4 {[%emt 0:00:00]} c5 {[%emt 0:00:17]} 2. c4 {[%emt 0:00:00]} Nc6 {[%emt 0:02:10]} 3. g3 {[%emt 0:00:06]} g6 {[%emt 0:00:46]} 4. Bg2 {[%emt 0:00:23]} Bg7 {[%emt 0:00:22]} 5. Nc3 {[%emt 0:00:11]} e6 {[%emt 0:03:40]} 6. Nge2 {[%emt 0:03:56]} Nge7 {[%emt 0:01:01]} 7. d3 {[%emt 0:00:44]} d6 {[%emt 0:03:31]} 8. O-O {[%emt 0:00:56]} O-O {[%emt 0:01:03]} 9. a3 {[%emt 0:00:34]} Rb8 {[%emt 0:04:54]} 10. Rb1 {[%emt 0:00:41]} a5 {[%emt 0:05:48] LiveBook: 18 Games} 11. Nb5 {[%emt 0:04:17] A36: Symmetrical English vs ...g6: 4 Bg2 Bg7} (11. h3 b6 12. Nb5 Ba6 13. Be3 d5 14. exd5 exd5 15. Bf4 Ne5 16. Qb3 d4 17. Rfe1 Nf5 18. Na7 Bb7 19. Bxe5 Bxe5 20. Bxb7 Rxb7 {½-½ (48) Gurevich,M (2627)-Mista,A (2543) Warsaw 2007}) 11... b6 {[%emt 0:10:04]} 12. Be3 {[%emt 0:06:12]} Bb7 $146 {[%emt 0:04:49]} ({Predecessor:} 12... e5 13. Qd2 Be6 14. Nec3 Qd7 15. Nd5 Bxd5 16. exd5 Na7 17. Nc3 b5 18. b4 axb4 19. axb4 cxb4 20. Rxb4 bxc4 21. Rxb8 Rxb8 22. dxc4 {½-½ (42) Wiedenkeller,M (2455)-Horvath,T (2395) Copenhagen 1986}) 13. f4 {[%emt 0:01:44]} f5 {[%emt 0:09:01]} 14. Bf2 {[%emt 0:08:03]} Kh8 {[%emt 0:04:09]} 15. Qc2 {[%emt 0:02:56]} e5 {[%emt 0:03:52]} 16. Rfe1 {[%emt 0:02:45]} Nd4 {[%emt 0:03:00]} 17. Bxd4 {[%emt 0:02:04]} exd4 {[%emt 0:04:31]} 18. Kh1 {[%emt 0:04:39]} Qd7 {[%emt 0:06:30]} 19. Ng1 {[%emt 0:00:43]} Ng8 {[%emt 0:02:30]} 20. h3 {[%emt 0:06:47]} ({Better is} 20. exf5 $11 Bxg2+ 21. Qxg2) 20... Rbe8 {[%emt 0:02:25]} 21. Kh2 {[%emt 0:01:05]} h6 {[%emt 0:02:37]} ({Black should play} 21... fxe4 $15 22. dxe4 Re7) 22. exf5 {[%emt 0:03:51]} Bxg2 {[%emt 0:01:15]} 23. Qxg2 {[%emt 0:00:23]} Rxe1 {[%emt 0:06:31]} 24. Rxe1 {[%emt 0:00:39]} Rxf5 {[%emt 0:01:18]} 25. Qa8 {[%emt 0:01:41]} Rf8 $14 {[%emt 0:03:00]} 26. Qd5 {[%emt 0:00:33]} g5 {[%emt 0:02:18]} 27. fxg5 {[%emt 0:08:58]} Rf2+ {[%emt 0:00:49]} 28. Kh1 {[%emt 0:00:04]} hxg5 {[%emt 0:01:21]} 29. Qxg5 {[%emt 0:05:15]} Qb7+ {[%emt 0:01:37]} 30. Re4 {[%emt 0:07:05]} Be5 {[%emt 0:05:29]} 31. Nf3 {[%emt 0:04:32]} Rxf3 32. Rh4+ 1-0